fUSD/lending_fUSD_20250103
["ID","MTS","AMOUNT","RATE_DAILY","PERIOD"]
[347504171,1735888251382,-500.0,9.553e-05,2]
[347504172,1735888251393,-500.0,9.553e-05,2]
[347504173,1735888251402,-199.91898115,9.553e-05,2]
[347504174,1735888251411,-729.02,9.553e-05,2]
[347504175,1735888251420,-1783.57,9.553e-05,2]
[347504176,1735888251430,-500.0,9.553e-05,2]
[347504177,1735888251439,-500.0,9.553e-05,2]
[347504178,1735888251449,-500.0,9.553e-05,2]
[347504179,1735888251459,-500.0,9.553e-05,2]
[347504180,1735888251470,-500.0,9.553e-05,2]
[347504181,1735888251479,-2908.56,9.553e-05,2]
[347504182,1735888251488,-500.0,9.553e-05,2]
[347504183,1735888251497,-6586.22,9.553e-05,2]
[347504184,1735888251506,-500.0,9.553e-05,2]
[347504185,1735888251514,-500.0,9.553e-05,2]
[347504186,1735888251524,-500.0,9.553e-05,2]
[347504187,1735888251534,-515.58,9.553e-05,2]
[347504188,1735888251543,-500.0,9.553e-05,2]
[347504189,1735888251552,-2103.03,9.553e-05,2]
[347504190,1735888251561,-500.0,9.553e-05,2]
[347504191,1735888251570,-500.0,9.553e-05,2]
[347504192,1735888251579,-500.0,9.553e-05,2]
[347504193,1735888251588,-500.0,9.553e-05,2]
[347504194,1735888251598,-500.0,9.553e-05,2]
[347504195,1735888251607,-500.0,9.553e-05,2]
[347504196,1735888251617,-500.0,9.553e-05,2]
[347504197,1735888251626,-2785.61,9.553e-05,2]
[347504198,1735888251635,-1930.68,9.553e-05,2]
[347504199,1735888251644,-1371.92,9.553e-05,2]
[347504200,1735888251653,-500.0,9.553e-05,2]
[347504201,1735888251663,-2026.03,9.553e-05,2]
[347504202,1735888251672,-500.0,9.553e-05,2]
[347504203,1735888251681,-500.0,9.553e-05,2]
[347504204,1735888251690,-1931.62,9.553e-05,2]
[347504205,1735888251699,-13187.7,9.553e-05,2]
[347504206,1735888251708,-500.0,9.553e-05,2]
[347504207,1735888251717,-3428.87,9.553e-05,2]
[347504208,1735888251726,-500.0,9.553e-05,2]
[347504209,1735888251735,-500.0,9.553e-05,2]
[347504210,1735888251744,-501.6875977,9.553e-05,2]
[347504211,1735888251754,-1768.89,9.553e-05,2]
[347504212,1735888251763,-500.0,9.553e-05,2]
[347504213,1735888251773,-158.776847,9.553e-05,2]
[347504214,1735888251783,-1390.52,9.553e-05,2]
[347504215,1735888251793,-500.0,9.553e-05,2]
[347504216,1735888251802,-500.0,9.553e-05,2]
[347504217,1735888251813,-500.0,9.553e-05,2]
[347504218,1735888251822,-500.0,9.553e-05,2]
[347504219,1735888251831,-500.0,9.553e-05,2]
[347504220,1735888251841,-500.0,9.553e-05,2]
[347504221,1735888251850,-1257.72,9.553e-05,2]
[347504222,1735888251860,-1836.07,9.553e-05,2]
[347504223,1735888251869,-5680.93,9.553e-05,2]
[347504224,1735888251879,-500.0,9.553e-05,2]
[347504225,1735888251888,-500.0,9.553e-05,2]
[347504226,1735888251897,-500.0,9.553e-05,2]
[347504227,1735888251907,-9048.59,9.553e-05,2]
[347504228,1735888251916,-1547.65,9.553e-05,2]
[347504229,1735888251926,-1557.12,9.553e-05,2]
[347504230,1735888251935,-500.0,9.553e-05,2]
[347504231,1735888251945,-500.0,9.553e-05,2]
[347504232,1735888251955,-500.0,9.553e-05,2]
[347504233,1735888251964,-997.27,9.553e-05,2]
[347504234,1735888251973,-500.0,9.553e-05,2]
[347504235,1735888251982,-6375.66,9.553e-05,2]
[347504236,1735888251991,-697.25,9.553e-05,2]
[347504237,1735888252000,-500.0,9.553e-05,2]
[347504238,1735888252010,-7311.07,9.553e-05,2]
[347504239,1735888252019,-1249.75,9.553e-05,2]
[347504240,1735888252028,-327.31650056,9.553e-05,2]
[347504241,1735888252037,-500.0,9.553e-05,2]
[347504242,1735888252046,-500.0,9.553e-05,2]
[347504243,1735888252055,-2333.87,9.553e-05,2]
[347504244,1735888252063,-8597.6,9.553e-05,2]
[347504245,1735888252073,-633.25,9.553e-05,2]
[347504246,1735888252082,-1851.6,9.553e-05,2]
[347504247,1735888252092,-1874.03,9.553e-05,2]
[347504248,1735888252102,-3420.23,9.553e-05,2]
[347504249,1735888252113,-500.0,9.553e-05,2]
[347504250,1735888252122,-500.0,9.553e-05,2]
[347504251,1735888252133,-500.0,9.553e-05,2]
[347504252,1735888252142,-830.17,9.553e-05,2]
[347504253,1735888252152,-4532.54,9.553e-05,2]
[347504254,1735888252161,-12182.26,9.553e-05,2]
[347504255,1735888252170,-500.0,9.553e-05,2]
[347504256,1735888252181,-500.0,9.553e-05,2]
[347504257,1735888252191,-574.18,9.553e-05,2]
[347504258,1735888252200,-500.0,9.553e-05,2]
[347504259,1735888252209,-500.0,9.553e-05,2]
[347504260,1735888252218,-1042.36,9.553e-05,2]
[347504261,1735888252227,-1806.97,9.553e-05,2]
[347504262,1735888252236,-500.0,9.553e-05,2]
[347504263,1735888252246,-2295.13,9.553e-05,2]
[347504264,1735888252255,-500.0,9.553e-05,2]
[347504265,1735888252265,-500.0,9.553e-05,2]
[347504266,1735888252275,-3238.71,9.553e-05,2]
[347504267,1735888252284,-500.0,9.553e-05,2]
[347504268,1735888252293,-500.0,9.553e-05,2]
[347504269,1735888252303,-500.0,9.553e-05,2]
[347504270,1735888252312,-500.0,9.553e-05,2]
[347504271,1735888252321,-190.65294119,9.553e-05,2]
[347504272,1735888252330,-1070.39,9.553e-05,2]
[347504273,1735888252339,-500.0,9.553e-05,2]
[347504274,1735888252349,-2180.59,9.553e-05,2]
[347504275,1735888252359,-8625.0,9.553e-05,2]
[347504276,1735888252369,-3795.29,9.553e-05,2]
[347504277,1735888252378,-1011.63,9.553e-05,2]
[347504278,1735888252393,-853.87,9.553e-05,2]
[347504279,1735888252404,-4531.96,9.553e-05,2]
[347504280,1735888252414,-500.0,9.553e-05,2]
[347504281,1735888252677,-500.0,9.553e-05,2]
[347504282,1735888252688,-653.29,9.553e-05,2]
[347504283,1735888252697,-6542.18,9.553e-05,2]
[347504284,1735888252707,-500.0,9.553e-05,2]
[347504285,1735888252717,-2274.37,9.553e-05,2]
[347504286,1735888252727,-2304.96,9.553e-05,2]
[347504287,1735888252736,-1005.7,9.553e-05,2]
[347504288,1735888252745,-1080.46,9.553e-05,2]
[347504289,1735888252755,-9149.09,9.553e-05,2]
[347504290,1735888252764,-2008.51,9.553e-05,2]
[347504291,1735888252775,-7668.29,9.553e-05,2]
[347504292,1735888252784,-3975.25,9.553e-05,2]
[347504293,1735888252794,-500.0,9.553e-05,2]
[347504294,1735888252803,-914.84,9.553e-05,2]
[347504295,1735888252812,-614.27,9.553e-05,2]
[347504296,1735888252822,-500.0,9.553e-05,2]
[347504297,1735888252831,-500.0,9.553e-05,2]
[347504298,1735888252841,-492.42,9.554e-05,2]
[347504299,1735888252851,-388.43730427,9.554e-05,2]
[347504300,1735888252860,-500.0,9.554e-05,2]
[347504301,1735888252870,-500.0,9.554e-05,2]
[347504302,1735888252881,-500.0,9.554e-05,2]
[347504303,1735888252891,-500.0,9.554e-05,2]
[347504304,1735888252901,-1893.2,9.554e-05,2]
[347504305,1735888252911,-4745.34,9.554e-05,2]
[347504306,1735888252922,-500.0,9.554e-05,2]
[347504307,1735888252933,-2367.13,9.554e-05,2]
[347504308,1735888252943,-8708.74,9.554e-05,2]
[347504309,1735888252953,-666.0,9.554e-05,2]
[347504310,1735888252963,-3572.95,9.554e-05,2]
[347504311,1735888252972,-2190.16,9.554e-05,2]
[347504312,1735888252981,-1683.64,9.554e-05,2]
[347504313,1735888252990,-2100.24,9.554e-05,2]
[347504314,1735888252999,-4290.55,9.554e-05,2]
[347504315,1735888253009,-1669.12,9.554e-05,2]
[347504316,1735888253019,-2558.17,9.554e-05,2]
[347504317,1735888253029,-500.0,9.554e-05,2]
[347504318,1735888253039,-3567.66,9.554e-05,2]
[347504319,1735888253048,-2049.89,9.554e-05,2]
[347504320,1735888253058,-3484.46,9.554e-05,2]
[347504321,1735888253067,-1461.26,9.554e-05,2]
[347504322,1735888253076,-2661.98,9.554e-05,2]
[347504323,1735888253087,-3458.71,9.554e-05,2]
[347504324,1735888253097,-1492.3,9.554e-05,2]
[347504325,1735888253107,-11025.83,9.554e-05,2]
[347504326,1735888253118,-2131.22,9.554e-05,2]
[347504327,1735888253128,-989.98,9.554e-05,2]
[347504328,1735888253139,-1846.61,9.554e-05,2]
[347504329,1735888253150,-1846.61,9.554e-05,2]
[347504330,1735888253160,-2613.41,9.554e-05,2]
[347504331,1735888253171,-1851.6,9.554e-05,2]
[347504332,1735888253183,-725.56,9.554e-05,2]
[347504333,1735888253193,-1270.88,9.554e-05,2]
[347504334,1735888253202,-1987.76,9.554e-05,2]
[347504335,1735888253212,-623.14,9.554e-05,2]
[347504336,1735888253222,-384.16636738,9.554e-05,2]
[347504337,1735888253231,-3184.53,9.554e-05,2]
[347504338,1735888253243,-1328.95,9.554e-05,2]
[347504339,1735888253255,-2284.26,9.554e-05,2]
[347504340,1735888253265,-1236.24,9.554e-05,2]
[347504341,1735888253277,-1668.78,9.554e-05,2]
[347504342,1735888253286,-500.0,9.555e-05,2]
[347504343,1735888253296,-500.0,9.555e-05,2]
[347504344,1735888253306,-500.0,9.555e-05,2]
[347504345,1735888253316,-901.42,9.555e-05,2]
[347504346,1735888253326,-828.4,9.555e-05,2]
[347504347,1735888253336,-649.59,9.555e-05,2]
[347504348,1735888253346,-500.0,9.555e-05,2]
[347504349,1735888253357,-896.64,9.555e-05,2]
[347504350,1735888253367,-500.0,9.555e-05,2]
[347504351,1735888253376,-849.64,9.555e-05,2]
[347504352,1735888253389,-1528.19,9.555e-05,2]
[347504353,1735888253399,-500.0,9.555e-05,2]
[347504354,1735888253408,-500.0,9.555e-05,2]
[347504355,1735888253417,-500.0,9.555e-05,2]
[347504356,1735888253427,-500.0,9.555e-05,2]
[347504357,1735888253436,-636.62,9.555e-05,2]
[347504358,1735888253445,-500.0,9.555e-05,2]
[347504359,1735888253455,-500.0,9.555e-05,2]
[347504360,1735888253464,-500.0,9.555e-05,2]
[347504361,1735888253474,-500.0,9.555e-05,2]
[347504362,1735888253483,-500.0,9.555e-05,2]
[347504363,1735888253492,-500.0,9.555e-05,2]
[347504364,1735888253502,-500.0,9.555e-05,2]
[347504365,1735888253511,-500.0,9.555e-05,2]
[347504366,1735888253522,-510.92,9.555e-05,2]
[347504367,1735888253532,-997.7,9.555e-05,2]
[347504368,1735888253541,-500.27,9.555e-05,2]
[347504369,1735888253550,-500.0,9.555e-05,2]
[347504370,1735888253560,-1372.45,9.555e-05,2]
[347504371,1735888253569,-500.0,9.555e-05,2]
[347504372,1735888253578,-500.0,9.555e-05,2]
[347504373,1735888253588,-500.0,9.555e-05,2]
[347504374,1735888253597,-1373.32,9.555e-05,2]
[347504375,1735888253606,-500.0,9.555e-05,2]
[347504376,1735888253616,-562.84,9.555e-05,2]
[347504377,1735888253626,-500.0,9.555e-05,2]
[347504378,1735888253636,-500.0,9.555e-05,2]
[347504379,1735888253646,-500.0,9.555e-05,2]
[347504380,1735888253656,-500.0,9.555e-05,2]
[347504381,1735888253667,-552.97110714,9.555e-05,2]
[347504382,1735888253676,-1309.08,9.555e-05,2]
[347504383,1735888253686,-500.0,9.555e-05,2]
[347504384,1735888253696,-500.0,9.555e-05,2]
[347504385,1735888253706,-500.0,9.555e-05,2]
[347504386,1735888253718,-1414.09,9.555e-05,2]
[347504387,1735888253727,-500.0,9.555e-05,2]
[347504388,1735888253736,-500.0,9.555e-05,2]
[347504389,1735888253746,-500.0,9.555e-05,2]
[347504390,1735888253755,-500.0,9.555e-05,2]
[347504391,1735888253764,-557.51,9.555e-05,2]
[347504392,1735888253774,-500.0,9.555e-05,2]
[347504393,1735888253783,-500.0,9.555e-05,2]
[347504394,1735888253792,-1043.96,9.555e-05,2]
[347504395,1735888253801,-500.0,9.555e-05,2]
[347504396,1735888253811,-1062.33,9.555e-05,2]
[347504397,1735888253820,-1153.21,9.555e-05,2]
[347504398,1735888253829,-500.0,9.555e-05,2]
[347504399,1735888253838,-500.0,9.555e-05,2]
[347504400,1735888253847,-500.0,9.555e-05,2]
[347504401,1735888253856,-500.0,9.555e-05,2]
[347504402,1735888253865,-500.0,9.555e-05,2]
[347504403,1735888253874,-500.0,9.555e-05,2]
[347504404,1735888253883,-711.23,9.555e-05,2]
[347504405,1735888253892,-711.23,9.555e-05,2]
[347504406,1735888253902,-500.0,9.555e-05,2]
[347504407,1735888253911,-500.0,9.555e-05,2]
[347504408,1735888253920,-500.0,9.555e-05,2]
[347504409,1735888253930,-500.0,9.555e-05,2]
[347504410,1735888253939,-790.05,9.555e-05,2]
[347504411,1735888253948,-528.61844214,9.555e-05,2]
[347504412,1735888253958,-500.0,9.555e-05,2]
[347504413,1735888253967,-500.0,9.555e-05,2]
[347504414,1735888253976,-500.0,9.555e-05,2]
[347504415,1735888253985,-500.0,9.555e-05,2]
[347504416,1735888253994,-619.38,9.555e-05,2]
[347504417,1735888254003,-500.0,9.555e-05,2]
[347504418,1735888254012,-500.0,9.555e-05,2]
[347504419,1735888254021,-500.0,9.555e-05,2]
[347504420,1735888254031,-565.57,9.555e-05,2]
[347504421,1735888254040,-1635.47,9.555e-05,2]
[347504422,1735888254049,-500.0,9.555e-05,2]
[347504423,1735888254058,-735.45,9.555e-05,2]
[347504424,1735888254067,-500.0,9.555e-05,2]
[347504425,1735888254076,-1330.74,9.555e-05,2]
[347504426,1735888254085,-500.0,9.555e-05,2]
[347504427,1735888254094,-787.36,9.555e-05,2]
[347504428,1735888254103,-500.0,9.555e-05,2]
[347504429,1735888254113,-500.0,9.555e-05,2]
[347504430,1735888254122,-500.0,9.555e-05,2]
[347504431,1735888254131,-1490.44,9.555e-05,2]
[347504432,1735888254140,-500.0,9.555e-05,2]
[347504433,1735888254149,-500.0,9.555e-05,2]
[347504434,1735888254158,-500.0,9.555e-05,2]
[347504435,1735888254167,-500.0,9.555e-05,2]
[347504436,1735888254176,-500.0,9.555e-05,2]
[347504437,1735888254185,-500.0,9.555e-05,2]
[347504438,1735888254194,-500.0,9.555e-05,2]
[347504439,1735888254202,-150.0,9.555e-05,2]
[347504440,1735888254211,-500.0,9.555e-05,2]
[347504441,1735888254220,-500.0,9.555e-05,2]
[347504442,1735888254228,-1554.16,9.555e-05,2]
[347504443,1735888254237,-500.0,9.555e-05,2]
[347504444,1735888254246,-500.0,9.555e-05,2]
[347504445,1735888254256,-1313.82,9.555e-05,2]
[347504446,1735888254265,-500.0,9.555e-05,2]
[347504447,1735888254276,-500.0,9.555e-05,2]
[347504448,1735888254285,-500.0,9.555e-05,2]
[347504449,1735888254295,-500.0,9.555e-05,2]
[347504450,1735888254304,-500.0,9.555e-05,2]
[347504451,1735888254313,-500.0,9.555e-05,2]
[347504452,1735888254322,-509.81,9.555e-05,2]
[347504453,1735888254331,-500.0,9.555e-05,2]
[347504454,1735888254340,-500.0,9.555e-05,2]
[347504455,1735888254349,-500.0,9.555e-05,2]
[347504456,1735888254358,-500.0,9.555e-05,2]
[347504457,1735888254367,-500.0,9.555e-05,2]
[347504458,1735888254376,-512.03,9.555e-05,2]
[347504459,1735888254388,-500.0,9.555e-05,2]
[347504460,1735888254397,-500.0,9.555e-05,2]
[347504461,1735888254406,-500.0,9.555e-05,2]
[347504462,1735888254415,-500.0,9.555e-05,2]
[347504463,1735888254423,-500.0,9.555e-05,2]
[347504464,1735888254433,-500.0,9.555e-05,2]
[347504465,1735888254442,-1265.57,9.555e-05,2]
[347504466,1735888254451,-500.0,9.555e-05,2]
[347504467,1735888254462,-794.92,9.555e-05,2]
[347504468,1735888254471,-500.0,9.555e-05,2]
[347504469,1735888254480,-500.0,9.555e-05,2]
[347504470,1735888254489,-500.0,9.555e-05,2]
[347504471,1735888254498,-500.0,9.555e-05,2]
[347504472,1735888254508,-419.91278811,9.555e-05,2]
[347504473,1735888254523,-674.26,9.555e-05,2]
[347504474,1735888254540,-702.88,9.555e-05,2]
[347504475,1735888254552,-1846.61,9.555e-05,2]
[347504476,1735888254568,-1851.6,9.555e-05,2]
[347504477,1735888254584,-669.53150814,9.555e-05,2]
[347504478,1735888254599,-3135.45,9.556e-05,2]
[347504479,1735888254613,-4452.18,9.556e-05,2]
[347504480,1735888254626,-9912.84,9.556e-05,2]
[347504481,1735888254641,-1345.99,9.556e-05,2]
[347504482,1735888254656,-1972.87,9.556e-05,2]
[347504483,1735888254671,-500.0,9.556e-05,2]
[347504484,1735888254686,-6205.83,9.556e-05,2]
[347504485,1735888254701,-500.0,9.556e-05,2]
[347504486,1735888254715,-500.0,9.556e-05,2]
[347504487,1735888254730,-1630.14,9.556e-05,2]
[347504488,1735888254744,-2200.87,9.556e-05,2]
[347504489,1735888254761,-500.0,9.556e-05,2]
[347504490,1735888254776,-500.0,9.556e-05,2]
[347504491,1735888254787,-4306.53,9.556e-05,2]
[347504492,1735888254804,-500.0,9.556e-05,2]
[347504493,1735888254816,-3360.01,9.556e-05,2]
[347504494,1735888254827,-3799.5,9.556e-05,2]
[347504495,1735888254842,-711.23,9.556e-05,2]
[347504496,1735888254856,-711.23,9.556e-05,2]
[347504497,1735888254867,-500.0,9.556e-05,2]
[347504498,1735888254881,-3502.55,9.556e-05,2]
[347504499,1735888254895,-2697.61,9.556e-05,2]
[347504500,1735888254908,-3259.67,9.556e-05,2]
[347504501,1735888254920,-2667.05,9.556e-05,2]
[347504502,1735888254933,-1846.61,9.556e-05,2]
[347504503,1735888254946,-1846.61,9.556e-05,2]
[347504504,1735888254959,-1851.6,9.556e-05,2]
[347504505,1735888254971,-7676.86167801,9.557e-05,2]
[347504506,1735888254990,-500.0,9.557e-05,2]
[347504507,1735888255002,-500.0,9.557e-05,2]
[347504508,1735888255014,-504.34064483,9.557e-05,2]
[347504509,1735888255028,-500.0,9.557e-05,2]
[347504510,1735888255041,-500.0,9.557e-05,2]
[347504511,1735888255053,-500.0,9.557e-05,2]
[347504512,1735888255066,-500.0,9.557e-05,2]
[347504513,1735888255078,-500.0,9.557e-05,2]
[347504514,1735888255091,-500.0,9.557e-05,2]
[347504515,1735888255103,-500.0,9.557e-05,2]
[347504516,1735888255115,-500.0,9.557e-05,2]
[347504517,1735888255129,-500.0,9.557e-05,2]
[347504518,1735888255143,-153.4,9.557e-05,2]
[347504519,1735888255157,-609.0693624,9.557e-05,2]
[347504520,1735888255171,-711.23,9.557e-05,2]
[347504521,1735888255184,-711.23,9.557e-05,2]
[347504522,1735888255197,-711.23,9.557e-05,2]
[347504523,1735888255210,-711.23,9.557e-05,2]
[347504524,1735888255224,-711.23,9.557e-05,2]
[347504525,1735888255238,-711.23,9.557e-05,2]
[347504526,1735888255251,-711.23,9.557e-05,2]
[347504527,1735888255264,-711.23,9.557e-05,2]
[347504528,1735888255278,-711.23,9.557e-05,2]
[347504529,1735888255291,-711.23,9.557e-05,2]
[347504530,1735888255303,-711.23,9.557e-05,2]
[347504531,1735888255316,-711.23,9.557e-05,2]
[347504532,1735888255328,-711.23,9.557e-05,2]
[347504533,1735888255341,-711.23,9.557e-05,2]
[347504534,1735888255354,-500.0,9.557e-05,2]
[347504535,1735888255367,-1846.61,9.557e-05,2]
[347504536,1735888255380,-1846.61,9.557e-05,2]
[347504537,1735888255396,-1846.61,9.557e-05,2]
[347504538,1735888255409,-1846.61,9.557e-05,2]
[347504539,1735888255423,-1846.61,9.557e-05,2]
[347504540,1735888255437,-1846.61,9.557e-05,2]
[347504541,1735888255450,-1846.61,9.557e-05,2]
[347504542,1735888255463,-1846.61,9.557e-05,2]
[347504543,1735888255478,-1846.61,9.557e-05,2]
[347504544,1735888255492,-1846.61,9.557e-05,2]
[347504545,1735888255505,-1846.61,9.557e-05,2]
[347504546,1735888255518,-1846.61,9.557e-05,2]
[347504547,1735888255534,-1846.61,9.557e-05,2]
[347504548,1735888255546,-1846.61,9.557e-05,2]
[347504549,1735888255560,-1851.6,9.557e-05,2]
[347504550,1735888255575,-1851.6,9.557e-05,2]
[347504551,1735888255589,-1851.6,9.557e-05,2]
[347504552,1735888255602,-1851.6,9.557e-05,2]
[347504553,1735888255616,-1851.6,9.557e-05,2]
[347504554,1735888255630,-1851.6,9.557e-05,2]
[347504555,1735888255643,-1851.6,9.557e-05,2]
[347504556,1735888255656,-1851.6,9.557e-05,2]
[347504557,1735888255668,-1851.6,9.557e-05,2]
[347504558,1735888255682,-1851.6,9.557e-05,2]
[347504559,1735888255695,-1851.6,9.557e-05,2]
[347504560,1735888255708,-1851.6,9.557e-05,2]
[347504561,1735888255721,-1851.6,9.557e-05,2]
[347504562,1735888255734,-1851.6,9.557e-05,2]
[347504563,1735888255746,-1851.6,9.557e-05,2]
[347504564,1735888255761,-1851.6,9.557e-05,2]
[347504565,1735888255773,-1851.71636586,9.557e-05,2]
[347504566,1735888255786,-8170.17319862,9.558e-05,2]
[347504567,1735888255798,-793.0,9.558e-05,2]
[347504568,1735888255811,-2780308.60025449,9.558e-05,2]
[347504569,1735888257431,-3.55491764,9.551e-05,2]
[347504570,1735888258132,-510.15508236,9.551e-05,2]
[347504571,1735888258148,-24.60491564,9.551e-05,2]
[347504572,1735888258163,-475.39508436,9.551e-05,2]
[347504573,1735888258172,-409.61649709,9.552e-05,2]
[347504574,1735888258182,-90.38350291,9.552e-05,2]
[347504575,1735888258191,-161.10749709,9.552e-05,2]
[347504576,1735888269121,152.0,0.00010982,7]
[347504577,1735888277960,183.69,8.986e-05,2]
[347504595,1735888455832,243.093,9.08e-05,2]
[347504596,1735888485708,164.78,8.664e-05,2]
[347504597,1735888510196,500.79,8.676e-05,2]
[347504598,1735888542623,240.429,9.08e-05,2]
[347504599,1735888621368,150.010316,0.0002,120]
[347504601,1735888811611,250.0,8.657e-05,2]
[347504604,1735889104132,150.0,8.827e-05,2]
[347504605,1735889106684,150.0,8.827e-05,2]
[347504606,1735889114001,223.79174546,8.827e-05,2]
[347504607,1735889120307,4857.73368331,9e-05,2]
[347504608,1735889129355,144928.51448614,9e-05,2]
[347504609,1735889136195,28000.0,8e-05,2]
[347504614,1735889144558,237.418,9.08e-05,2]
[347504615,1735889147953,1000.0,8.629e-05,2]
[347504616,1735889153998,4607.82682862,6.94e-05,2]
[347504617,1735889166513,11044.08452343,7e-05,2]
[347504619,1735889252847,1349.61,8.219e-05,2]
[347504620,1735889273666,9484.59,8.628e-05,2]
[347505246,1735889428054,63501.81433163,0.00015231,19]
[347505247,1735889428994,290.09,8.647e-05,2]
[347505264,1735889432316,-150.0,9.318e-05,2]
[347505266,1735889432325,-668.264965,9.451e-05,2]
[347505267,1735889432466,-310.05771303,9.451e-05,2]
[347505268,1735889432479,-1103.55713475,9.451e-05,2]
[347505269,1735889432490,-281.54183368,9.451e-05,2]
[347505270,1735889432517,-392.93815354,9.451e-05,2]
[347505271,1735889432526,-90.33866605,9.452e-05,2]
[347505272,1735889432562,-1000.398,9.452e-05,2]
[347505273,1735889432574,-320.1703,9.452e-05,2]
[347505274,1735889432586,-44907.09113395,9.452e-05,2]
[347505275,1735889432596,-200.0,9.522e-05,2]
[347505276,1735889432605,-238.70979583,9.533e-05,2]
[347505277,1735889432615,-497.99,9.534e-05,2]
[347505278,1735889432625,-496.87,9.543e-05,2]
[347505279,1735889432635,-500.85,9.543e-05,2]
[347505280,1735889432644,-5052.71,9.549e-05,2]
[347505281,1735889432654,-4600.62,9.549e-05,2]
[347505282,1735889432664,-4408.93,9.549e-05,2]
[347505283,1735889432674,-6761.18,9.549e-05,2]
[347505284,1735889432683,-740.18,9.549e-05,2]
[347505285,1735889432693,-2885.69,9.549e-05,2]
[347505286,1735889432703,-4192.93,9.549e-05,2]
[347505287,1735889432712,-1558.42,9.549e-05,2]
[347505289,1735889432722,-9013.53,9.549e-05,2]
[347505291,1735889432731,-14309.92,9.549e-05,2]
[347505293,1735889432741,-5443.14491261,9.549e-05,2]
[347505300,1735889432801,-731.51508739,9.549e-05,2]
[347505303,1735889432811,-617.76096298,9.549e-05,2]
[347505409,1735889438183,-6583.12903702,9.549e-05,2]
[347505410,1735889438193,-1093.18096298,9.549e-05,2]
[347505411,1735889438205,-509.16789362,9.549e-05,2]
[347505412,1735889438257,-2767.38113228,9.549e-05,2]
[347505413,1735889438269,-275.51859053,9.549e-05,2]
[347505414,1735889438357,-2067.21978566,9.549e-05,2]
[347505415,1735889438369,-1871.14163493,9.549e-05,2]
[347505416,1735889438379,-3277.72,9.549e-05,2]
[347505417,1735889438389,-3612.65997055,9.549e-05,2]
[347505418,1735889438400,-267.59212885,9.549e-05,2]
[347505419,1735889438411,-294.19862667,9.549e-05,2]
[347505420,1735889438423,-359.45240674,9.549e-05,2]
[347505421,1735889438435,-267.59306614,9.549e-05,2]
[347505422,1735889438487,-5707.16380105,9.549e-05,2]
[347505423,1735889438496,-12023.15,9.549e-05,2]
[347505424,1735889438506,-3924.49247793,9.549e-05,2]
[347505425,1735889438517,-345.38086967,9.549e-05,2]
[347505426,1735889438529,-269.7766524,9.549e-05,2]
[347505427,1735889438539,-5726.02,9.549e-05,2]
[347505428,1735889438549,-521.01,9.549e-05,2]
[347505429,1735889438559,-500.0,9.549e-05,2]
[347505430,1735889438568,-500.0,9.549e-05,2]
[347505431,1735889438578,-1078.11,9.549e-05,2]
[347505432,1735889438588,-1716.76,9.549e-05,2]
[347505433,1735889438597,-634.84,9.549e-05,2]
[347505434,1735889438607,-914.31,9.549e-05,2]
[347505435,1735889438616,-632.69390384,9.549e-05,2]
[347505436,1735889438628,-423.06609616,9.549e-05,2]
[347505437,1735889438638,-73.86920701,9.549e-05,2]
[347505438,1735889438650,-1264.43557993,9.549e-05,2]
[347505439,1735889440253,-264.1401,9.451e-05,2]
[347505440,1735889440263,-2497.39521306,9.549e-05,2]
[347505441,1735889440272,-500.0,9.549e-05,2]
[347505442,1735889440282,-1366.33510792,9.549e-05,2]
[347505443,1735889440293,-379.98489208,9.549e-05,2]
[347505444,1735889440303,-500.0,9.549e-05,2]
[347505445,1735889440314,-1175.34,9.549e-05,2]
[347505446,1735889440326,-4464.1,9.549e-05,2]
[347505447,1735889440336,-3484.42,9.549e-05,2]
[347505448,1735889440345,-500.0,9.55e-05,2]
[347505449,1735889440355,-500.0,9.55e-05,2]
[347505450,1735889440365,-500.0,9.55e-05,2]
[347505451,1735889440374,-500.0,9.55e-05,2]
[347505452,1735889440383,-500.0,9.55e-05,2]
[347505453,1735889440393,-500.0,9.55e-05,2]